{"text_format":"1","workbook":"xlsx","n_sheets":2,"sheets":["Лист1","Лист2"],"not_rendered":{"charts":0,"images":1,"macros":1,"external_links":0,"defined_names":2,"comments":0,"pivot_tables":0},"unopened":[],"bounds":{"document_bytes":16777216,"sheet_cells":100000,"rows_first":2000,"rows_last":500,"rows_between":2000,"halvings":0,"cell_chars":16384,"cell_head_chars":4096},"cells_cut":0,"cells_raw":0,"read":"whole","date_system":"1900"}

{"sheet":"Лист1","index":0,"n_rows":56,"n_cols":20,"rows_kept":56,"cut":false,"hidden":false,"merged":[[5,19,7,19],[0,9,0,10],[2,13,2,18],[5,14,5,15],[5,17,7,17],[5,18,7,18]]}
[null,null,null,null,"ДНЕВНОЙ ЗАБОРНЫЙ ЛИСТ  №",null,null,null,null,"5 Августа"]
[]
["Папоротник остр",null,"на отпуск готовых изделий из цеха в магазин \"Кулинария\"",null,null,null,null,null,null,null,null,null,null,"Оценка качества выпущенной продукции"]
[null,null,"Директор _________________                  Бухгалтер _________________________"]
[]
[null,null,null,null,null,null,11,12,13,15,16,null,null,null,null,null,null,"Доброкачественность","Правильность кулинароной обработки","Санитарное состояние ухни"]
[null,null,null,null,"ед.из.","Цена, руб","час","час","час","час","час",null,"Итого за ","день"]
["№ п/п",null,"Товар",null,null,null,null,null,null,null,null,"Возврат","Кол-во","Сумма"]
[1,null,"Айсберг",{"$f":"VLOOKUP(C9:C100,Список,2,0)","v":1},{"$f":"VLOOKUP(C9:C100,Список,4,0)","v":"кг"},{"$f":"VLOOKUP(C9:C100,Список,3,0)","v":380},null,0.5,null,null,null,null,{"$f":"G9+J9+K9+H9+I9","v":0.5},{"$f":"(K9+J9+I9+H9+G9)*F9","v":190},null,null,{"$f":"D9*M9","v":0.5},"хор","хор","хор"]
[2,"00:00:00","Оливье",1,"кг",320,null,0.7,null,null,null,null,{"$f":"G10+J10+K10+H10+I10","v":0.7},224,null,null,{"$f":"D10*M10","v":0.7},"хор","хор","хор"]
[3,null,"Нежность",1,"кг",280,null,0.7,null,null,null,null,0.7,196,null,null,0.7,"хор","хор","хор"]
[4,null,"Витаминный",1,"кг",220,null,1.6,null,null,null,null,1.6,352,1.8,{"$f":"O12*F12-N12","v":44},1.6,"хор","хор","хор"]
[5,null,"Шуба",1,"кг",270,null,1.7,null,null,null,null,1.7,459,null,null,1.7,"хор","хор","хор"]
[6,null,"Морковь соя",1,"кг",200,null,1.7,null,null,null,null,1.7,340,1.9,40,1.7,"хор","хор","хор"]
[7,null,"Хе сельдь",1,"кг",280,null,1.2,null,null,null,null,1.2,336,null,null,1.2,"хор","хор","хор"]
[8,null,"Плов",1,"кг",320,null,1.1000000000000001,null,null,null,null,1.1000000000000001,352,null,null,1.1000000000000001,"хор","хор","хор"]
[9,null,"Печень жар",1,"кг",550,null,1,null,null,null,null,1,550,null,null,1,"хор","хор","хор"]
[10,null,"Зразы картофельные",7.4999999999999997E-2,"шт",30,null,15,null,null,null,null,15,450,null,null,1.125,"хор","хор","хор"]
[11,null,"Рулада",1,"кг",600,null,1,null,null,null,null,1,600,null,null,1,"хор","хор","хор"]
[12,null,"Блины с рыбой",1,"кг",200,null,1.1000000000000001,null,null,null,null,1.1000000000000001,220.00000000000003,null,null,1.1000000000000001,"хор","хор","хор"]
[13,null,"Цыплята",1,"кг",450,null,0.9,null,null,null,null,0.9,405,null,null,0.9,"хор","хор","хор"]
[14,null,"Камбала",1,"кг",300,null,1.5,null,null,null,null,1.5,450,null,null,1.5,"хор","хор","хор"]
[15,null,"Навага жар",1,"кг",300,null,1.4,null,null,null,null,1.4,420,null,null,1.4,"хор","хор","хор"]
[16,null,"Пельмени с соусом",1,"кг",350,null,0.5,null,null,null,null,0.5,175,null,null,0.5,"хор","хор","хор"]
[17,null,"Крылья",1,"кг",550,null,1,null,null,null,null,1,550,null,null,1,"хор","хор","хор"]
[18,null,"Мясо по уссурийски",1,"кг",400,null,1.6,null,null,null,null,1.6,640,null,null,1.6,"хор","хор","хор"]
[19,null,"Головы горбуши",1,"кг",150,null,1.4,null,null,null,null,1.4,210,null,null,1.4,"хор","хор","хор"]
[20,null,"Пирожки жар рыба",7.4999999999999997E-2,"шт",17,null,10,null,null,null,null,10,170,null,null,0.75,"хор","хор","хор"]
[21,null,"Пирожки жар лив",7.4999999999999997E-2,"шт",19,null,20,null,null,null,null,20,380,null,null,1.5,"хор","хор","хор"]
[22,null,"Пирожки жар яйцо",7.4999999999999997E-2,"шт",19,null,20,null,null,null,null,20,380,null,null,1.5,"хор","хор","хор"]
[23,null,"Пирожки жар карт",7.4999999999999997E-2,"шт",17,null,18,null,null,null,null,18,306,null,null,1.3499999999999999,"хор","хор","хор"]
[24,null,"Чебуреки",0.12,"шт",38,null,10,null,null,null,null,10,380,null,null,1.2,"хор","хор","хор"]
[25,null,"Беляши",0.12,"шт",38,null,10,null,null,null,null,10,380,null,null,1.2,"хор","хор","хор"]
[26,null,"Пирожки печ кап",7.4999999999999997E-2,"шт",17,null,10,null,null,null,null,10,170,null,null,0.75,"хор","хор","хор"]
[27,null,"Пирожки печ яйцо",7.4999999999999997E-2,"шт",19,null,10,null,null,null,null,10,190,null,null,0.75,"хор","хор","хор"]
[28,null,"Кулебяка",1,"шт",25,null,4,null,null,null,null,4,100,null,null,4,"хор","хор","хор"]
[29,null,"Гамбургеры",1,"шт",45,null,15,null,null,null,null,15,675,null,null,15,"хор","хор","хор"]
[30,null,"Хот Доги",0.17,"шт",40,null,10,null,null,null,null,10,400,null,null,1.7000000000000002,"хор","хор","хор"]
[31,null,"Сосиски в т",0.09,"шт",25,null,10,null,null,null,null,10,250,null,null,0.89999999999999991,"хор","хор","хор"]
[32,null,"Котлеты в т",0.1,"шт",28,null,10,null,null,null,null,10,280,null,null,1,"хор","хор","хор"]
[33,null,"Пицца",0.21,"шт",60,null,5,null,null,null,null,5,300,null,null,1.05,"хор","хор","хор"]
[34,null,"Булочки мак",0.13,"шт",17,null,5,null,null,null,null,5,85,null,null,0.65,"хор","хор","хор"]
[35,null,"Булочки сах",0.13,"шт",15,null,15,null,null,null,null,15,225,null,null,1.9500000000000002,"хор","хор","хор"]
[36,null,"Булочки пов",0.13,"шт",16,null,10,null,null,null,null,10,160,null,null,1.3,"хор","хор","хор"]
[37,null,"Булочки сгущ",0.13,"шт",19,null,10,null,null,null,null,10,190,null,null,1.3,"хор","хор","хор"]
[38,null,"Сырники",1,"кг",25,null,0,null,null,null,null,0,0,null,null,0,"хор","хор","хор"]
[39,null,"Рогалики",1,"кг",250,null,2.4,null,null,null,null,2.4,600,null,null,2.4,"хор","хор","хор"]
[40,null,"Эклеры",1,"кг",300,null,0.6,null,null,null,null,0.6,180,null,null,0.6,"хор","хор","хор"]
[41,null,"Слойка",1,"кг",240,null,3,null,null,null,null,3,720,null,null,3,"хор","хор","хор"]
[42,null,"Орешки",1,"кг",250,null,3,null,null,null,null,3,750,null,null,3,"хор","хор","хор"]
[43,null,"Кости",1,"кг",50,null,8.6,3.4,null,null,null,12,600,null,null,12,"хор","хор","хор"]
[44,null,"Сало",1,"кг",450,null,2,null,null,null,null,2,900,null,null,2,"хор","хор","хор"]
[45,null,"Головы горбуши",1,"кг",150,null,1.4,null,null,null,null,1.4,210,null,null,1.4,"хор","хор","хор"]
[null,null,null,null,null,null,null,null,null,null,null,null,0,0,null,null,0,"хор","хор","хор"]
[null,null,null,null,null,null,null,null,null,null,null,null,0,0,null,null,0,"хор","хор","хор"]
[null,null,null,null,null,null,null,null,null,null,null,null,null,{"$f":"SUM(N9:N55)","v":16100},null,{"$f":"SUM(P9:P54)","v":84},{"$f":"SUM(Q9:Q55)","v":83.974999999999994}]

{"sheet":"Лист2","index":1,"n_rows":65,"n_cols":7,"rows_kept":65,"cut":false,"hidden":false,"merged":[]}
[]
[null,null,null,"Прайс"]
[null,null,"№ П/П","Наименование ","вес","цена"]
[null,null,1,"М кальмар",1,280,"шт"]
[null,null,2,"М соя",1,200,"кг"]
[null,null,3,"Фунчеза",1,200,"кг"]
[null,null,4,"Хе сельдь",1,280,"кг"]
[null,null,5,"Нежность",1,280,"кг"]
[null,null,6,"Айсберг",1,380,"кг"]
[null,null,7,"Кап остр",1,180,"кг"]
[null,null,8,"Витаминный",1,220,"кг"]
[null,null,9,"Оливье",1,320,"кг"]
[null,null,10,"Папоротник остр",1,290,"кг"]
[null,null,11,"Шуба",1,270,"кг"]
[null,null,12,"Камбала",1,300,"кг"]
[null,null,13,"Блины",1,230,"кг"]
[null,null,14,"Фунчеза с мяс",1,380,"кг"]
[null,null,15,"Рулада",1,600,"кг"]
[null,null,16,"Перец фарш",1,350,"кг"]
[null,null,17,"Печень жар",1,550,"кг"]
[null,null,18,"Кальмар остр",1,500,"кг"]
[null,null,19,"Котлеты ",1,40,"кг"]
[null,null,20,"Сырники",1,25,"кг"]
[null,null,21,"Пирожки жар лив",7.4999999999999997E-2,19,"шт"]
[null,null,22,"Пирожки жар карт",7.4999999999999997E-2,17,"шт"]
[null,null,23,"Пирожки жар кап",7.4999999999999997E-2,17,"шт"]
[null,null,24,"Пирожки жар яйцо",7.4999999999999997E-2,19,"шт"]
[null,null,25,"Беляши",0.12,38,"шт"]
[null,null,26,"Чебуреки",0.12,38,"шт"]
[null,null,27,"Пирожки печ лив",7.4999999999999997E-2,19,"шт"]
[null,null,28,"Пирожки печ кап",7.4999999999999997E-2,17,"шт"]
[null,null,29,"Пирожки печ яйцо",7.4999999999999997E-2,19,"шт"]
[null,null,30,"Кулебяка",1,25,"шт"]
[null,null,31,"Гамбургеры",1,45,"шт"]
[null,null,32,"Хот Доги",0.17,40,"шт"]
[null,null,33,"Сосиски в т",0.09,25,"шт"]
[null,null,34,"Котлеты в т",0.1,28,"шт"]
[null,null,35,"Пицца",0.21,60,"шт"]
[null,null,36,"Булочки сах",0.13,15,"шт"]
[null,null,37,"Булочки пов",0.13,16,"шт"]
[null,null,38,"Булочки сгущ",0.13,19,"шт"]
[null,null,39,"Булочки сыр изюм",0.13,25,"шт"]
[null,null,40,"Булочки лимон",1,25,"шт"]
[null,null,41,"Рулеты",0.3,40,"кг"]
[null,null,42,"Бисквит с ананас",1,290,"кг"]
[null,null,43,"Слойка",1,240,"кг"]
[null,null,44,"Рогалики",1,250,"кг"]
[null,null,45,"Хворост",1,400,"кг"]
[null,null,46,"Трубочки",1,232,"кг"]
[null,null,47,"Эклеры",1,300,"кг"]
[null,null,48,"Морковь соя",1,200,"кг"]
[null,null,49,"Плов",1,320,"кг"]
[null,null,50,"Зразы картофельные",7.4999999999999997E-2,30,"шт"]
[null,null,51,"Блины с рыбой",1,200,"кг"]
[null,null,52,"Цыплята",1,450,"кг"]
[null,null,53,"Навага жар",1,300,"кг"]
[null,null,54,"Пельмени с соусом",1,350,"кг"]
[null,null,55,"Крылья",1,550,"кг"]
[null,null,56,"Мясо по уссурийски",1,400,"кг"]
[null,null,57,"Головы горбуши",1,150,"кг"]
[null,null,58,"Пирожки жар рыба",7.4999999999999997E-2,17,"шт"]
[null,null,59,"Булочки мак",0.13,17,"шт"]
[null,null,60,"Орешки",1,250,"кг"]
[null,null,61,"Кости",1,50,"кг"]
[null,null,62,"Сало",1,450,"кг"]